Cogmind - Beta 14 *** ADVENTURER MODE // 2025.03.18 @ 08:23:03 // Winter2019/RPGLIKE Player: Gallgagger Result: Self-destructed Performance ------------- Evolutions (0) 0 Regions Visited (3) 600 Robots Destroyed (53) 265 Value Destroyed (1655) 1655 Prototype IDs (5) 100 Alien Tech Used (0) 0 Bonus (90) 90 TOTAL SCORE: 2710 Bonus ------- High Alert Combat Kills 90 Cogmind --------- Core Integrity 600/600 Matter 300/300 Energy 310/310 System Corruption 0% Temperature Cool (0) Movement Flying (34) Location -7/Recycling Parts ------- > --- POWER (2) -------- Ion Engine Light Nuclear Core > --- PROPULSION (3) --- Flight Unit Flight Unit Flight Unit > --- UTILITY (3) ------ Weight Redist. System Improved Terrain Scanner Gun Armor > --- WEAPON (2+2) ----- Autobeam Heavy Hammer (+) > --- INVENTORY (2) ---- Protomatter-49 Subdweller Machine Gun Peak State ------------ > --- POWER ------------ Ion Engine Light Nuclear Core > --- PROPULSION ------- Flight Unit Flight Unit Flight Unit > --- UTILITY ---------- Weight Redist. System Improved Terrain Scanner Gun Armor > --- WEAPON ----------- Autobeam Flail Heavy Hammer > --- INVENTORY -------- Protomatter Subdweller Machine Gun [Rating: 27] Favorites ----------- Power Ion Engine Engine Ion Engine Power Core Light Nuclear Core Propulsion Flight Unit Wheel Compact Wheel Flight Unit Flight Unit Utility Improved Terrain Scanner Device Improved Terrain Scanner Protection Light Armor Plating Weapon Heavy Hammer Energy Gun Autobeam Ballistic Gun Light Assault Rifle Impact Weapon Heavy Hammer Build | -11 -10 -10 -7 ------- Run | Yrd Mat Sub Rec Slots Evolved 6 | 4 2 . . Power 1 | 1 . . . Propulsion 2 | 1 1 . . Utility 2 | 1 1 . . Weapon 1 | 1 . . . Parts Attached 26 | 8 10 8 . Power 3 | 2 1 . . Engine 2 | 2 . . . Core 1 | . 1 . . Reactor . | . . . . Propulsion 6 | 2 4 . . Treads . | . . . . Leg . | . . . . Wheel 2 | 2 . . . Hover . | . . . . Flight 4 | . 4 . . Utility 11 | 1 3 7 . Device 4 | 1 1 2 . Storage . | . . . . Processor . | . . . . Hackware . | . . . . Protection 7 | . 2 5 . Artifact . | . . . . Weapon 6 | 3 2 1 . Energy Gun 2 | 1 . 1 . Energy Cannon . | . . . . Ballistic Gun 2 | 2 . . . Ballistic Cannon . | . . . . Launcher . | . . . . Special Weapon . | . . . . Impact Weapon 2 | . 2 . . Slashing Weapon . | . . . . Piercing Weapon . | . . . . Special Melee Weapon . | . . . . Unidentified Prototypes 1 | . . 1 . Parts Lost . | . . . . Power . | . . . . Propulsion . | . . . . Utility . | . . . . Weapon . | . . . . Highest Loss Streak . | . . . . To Critical Strikes . | . . . . Average Slot Usage (%) 96 | . 98 95 . Engine 11 | . 14 9 . Core 8 | . 6 9 . Wheel 1 | . 4 . . Flight 26 | . 23 28 . Device 18 | . 18 18 . Protection 9 | . 9 9 . Ballistic Gun 5 | . 15 . . Impact Weapon 13 | . 5 17 . Peak Build Rating 27 | 9 17 27 . Average Rating 16 | 5 14 19 . On Entrance 12 | . 9 17 25 Naked Turns . | . . . . Heaviest Build 33 | 13 19 33 . Greatest Support 26 | 26 26 23 . Greatest Overweight (x) 1 | . . 1 . Average Overweight (x) . | . . . . Largest Inventory Capacity 2 | . 1 2 . Average Capacity 1 | . . 1 . Most Carried 2 | . 1 2 . Average Carried . | . . 1 . Final Capacity 2 | . 1 2 2 Final Carried 2 | . . 2 2 Class Distribution -------------------- 62% | Scavenger-Gladiator 28% | Scavenger-Mutant 9% | Mutant Dominant Class ---------------- Scavenger-Mutant | -10/Materials Scavenger-Gladiator | -10/Subcaves Scavenger-Gladiator | -7/Recycling Resources | -11 -10 -10 -7 ----------- Run | Yrd Mat Sub Rec Matter Collected 592 | 257 255 80 . Remotely . | . . . . Salvage Created 1383 | 79 642 662 . Parts 83 | 4 48 31 . Haulers Intercepted 1 | . 1 . . Recyclers Shooed . | . . . . Parts Field Recycled . | . . . . Retrieved Matter . | . . . . Parts Self-Destructed 7 | . . 7 . Prevented . | . . . . Kills | -11 -10 -10 -7 ------- Run | Yrd Mat Sub Rec Combat Hostiles Destroyed 45 | . 23 22 . Melee 19 | . 7 12 . Guns 14 | . 14 . . Classes Destroyed 8 | 2 4 2 . Tunneler 1 | 1 . . . Hauler 1 | . 1 . . Recycler 1 | 1 . . . Turret 2 | . . 2 . Watcher 3 | . 3 . . Swarmer 10 | . 6 4 . Grunt 19 | . 17 2 . Subdweller 16 | . . 16 . Best Kill Streak 6 | 2 4 6 . Combat Bots Only 4 | . 4 4 . Max Kills in Single Turn 1 | 1 1 1 . Gunslinging . | . . . . Exploded . | . . . . Melee 1 | . 1 1 . Uniques/NPCs Destroyed . | . . . . Combat | -11 -10 -10 -7 -------- Run | Yrd Mat Sub Rec Hostile Shots Fired 190 | . 81 109 . Missed 78 | . 33 45 . Damage Taken 1286 | . 431 855 . Core 876 | . 276 600 . Absorbed by Shields . | . . . . Redirected to Core 714 | . 259 455 . Ignored by Resistances 379 | . 133 246 . Core Remaining (%) 100 | 100 . . . Volleys Fired 66 | 5 61 . . Largest 2 | 2 2 . . Hottest 40 | 40 40 . . Shots Fired 139 | 10 122 7 . Gun 139 | 10 122 7 . Cannon . | . . . . Launcher . | . . . . Special . | . . . . Kinetic 132 | 10 122 . . Thermal 7 | . . 7 . Explosive . | . . . . Electromagnetic . | . . . . Robot Hit Streak 21 | 4 13 21 . Robot Miss Streak 3 | 1 3 1 . Penetration Max . | . . . . Secondary Targets 1 | . 1 . . Max Gunslinging Chain 1 | . 1 . . Autonomous 7 | . . 7 . Shots Hit Robots 184 | 7 108 69 . Core Hits 63 | 4 41 18 . Critical Kills 4 | . 2 2 . Critical Parts Destroyed 13 | . 3 10 . Critical Strikes 19 | . 5 14 . Smash 19 | . 5 14 . Melee Attacks 156 | . 25 131 . Impact 156 | . 25 131 . Slashing . | . . . . Piercing . | . . . . Sneak Attacks 1 | . . 1 . Combat Hostiles 1 | . . 1 . Follow-up Attacks 12 | . 6 6 . Damage Inflicted 4656 | 58 1757 2841 . Guns 936 | 58 741 137 . Cannons . | . . . . Explosions . | . . . . Melee 3720 | . 1016 2704 . Ramming . | . . . . Kinetic 799 | 58 741 . . Thermal 137 | . . 137 . Explosive . | . . . . Electromagnetic . | . . . . Impact 3720 | . 1016 2704 . Slashing . | . . . . Piercing . | . . . . Highest Corruption . | . . . . Average Corruption . | . . . . Corruption Purged . | . . . . Corruption Blocked . | . . . . Overload Shots . | . . . . Overflow Damage 943 | . 239 704 . Projectiles . | . . . . Explosions . | . . . . Melee 943 | . 239 704 . Knockbacks 21 | . 3 18 . Impact 20 | . 3 17 . Kinetic . | . . . . Secondary 1 | . . 1 . Self-Inflicted Damage . | . . . . Shots . | . . . . Rammed . | . . . . Targets Rammed . | . . . . Kicked . | . . . . Crushed . | . . . . Highest Temperature 152 | 20 152 . . Average Temperature 42 | 10 44 . . Received Heat Transfer 552 | . 261 291 . Siege Activations . | . . . . Robots Corrupted 12 | . 2 10 . Combat Hostiles 12 | . 2 10 . Parts Fried 18 | . 4 14 . Impact Corruptions 34 | . 11 23 . Robots Melted . | . . . . Combat Hostiles . | . . . . Parts Melted 2 | . . 2 . Heat Transferred 450 | . . 450 . Parts Sabotaged . | . . . . Parts Stolen . | . . . . Parts Stripped . | . . . . Power Chain Reactions . | . . . . Alert | -11 -10 -10 -7 ------- Run | Yrd Mat Sub Rec Peak Influence 736 | 10 736 . . Initial 5 | . 5 . . Average 280 | 2 306 . . Maximum Alert Level 3 | . 3 . . Low Security (%) 37 | 100 31 . . Level 1 38 | . 42 . . Level 2 16 | . 17 . . Level 3 7 | . 7 . . Level 4 . | . . . . Level 5 . | . . . . High Security . | . . . . Max Security . | . . . . Squads Dispatched 9 | . 9 . . Investigation 9 | . 9 . . Extermination . | . . . . Reinforcement . | . . . . Assault . | . . . . Garrison . | . . . . Intercept . | . . . . Searches Triggered . | . . . . Construction Impeded . | . . . . Haulers Reinforced . | . . . . Active Scanning Responses . | . . . . Cargo Convoy Interrupts . | . . . . Stealth | -11 -10 -10 -7 --------- Run | Yrd Mat Sub Rec Distress Signals 2 | . 2 . . Communications Jammed . | . . . . Distress Signals . | . . . . Times Spotted 55 | . 28 27 . Peak Tracking Total 6 | . 4 6 . Tactical Retreats 5 | . 2 3 . Traps | -11 -10 -10 -7 ------- Run | Yrd Mat Sub Rec Traps Triggered 1 | . 1 . . Indirectly . | . . . . Trap Hack Attempts . | . . . . Triggered . | . . . . Disarmed . | . . . . Reprogrammed . | . . . . Reused . | . . . . Traps Extracted . | . . . . Installed . | . . . . Triggered . | . . . . Machines | -11 -10 -10 -7 ---------- Run | Yrd Mat Sub Rec Machines Disabled . | . . . . Max in Single Turn . | . . . . Machines Repaired . | . . . . Machines Dismantled . | . . . . Machines Sabotaged 2 | . 2 . . Overloaded Fab Kills . | . . . . Hacking | -11 -10 -10 -7 --------- Run | Yrd Mat Sub Rec Machines Accessed 12 | . 11 1 . Terminals 8 | . 8 . . Fabricators . | . . . . Repair Stations 1 | . 1 . . Recycling Units 2 | . 2 . . Scanalyzers . | . . . . Garrison Access . | . . . . Total Hacks 37 | . 33 4 . Successful 29 | . 25 4 . Failed 8 | . 8 . . Catastrophic 1 | . 1 . . Database Lockouts . | . . . . Manual 28 | . 28 . . Terminals 30 | . 30 . . Fabricators . | . . . . Repair Stations 1 | . 1 . . Recycling Units 2 | . 2 . . Scanalyzers . | . . . . Garrison Access . | . . . . Terminal Hacks 15 | . 11 4 . Record 5 | . 1 4 . Robot Analysis 4 | . 4 . . Prototype ID Bank 2 | . 2 . . Hauler Manifests 1 | . 1 . . Registered Components 1 | . 1 . . Registered Prototypes 1 | . 1 . . Zone Layout 1 | . 1 . . Fabricator Hacks . | . . . . Repair Station Hacks . | . . . . Recycling Unit Hacks . | . . . . Scanalyzer . | . . . . Garrison Access Hacks . | . . . . Unauthorized Hacks 14 | . 14 . . Terminals 11 | . 11 . . Botnet 6 | . 6 . . Sabotage 5 | . 5 . . Fabricators . | . . . . Repair Stations 1 | . 1 . . Patch 1 | . 1 . . Recycling Units 2 | . 2 . . Tunnel 2 | . 2 . . Scanalyzers . | . . . . Garrison Access . | . . . . Data Cores Recovered . | . . . . Used . | . . . . Hacking Detections 8 | . 8 . . Full Trace Events 2 | . 2 . . Feedback Events . | . . . . Feedback Blocked . | . . . . Robot Schematics Acquired . | . . . . Robots Built . | . . . . Authchips . | . . . . Time . | . . . . Total Robot Build Rating . | . . . . Part Schematics Acquired . | . . . . Parts Built . | . . . . Authchips . | . . . . Time . | . . . . Total Part Build Rating . | . . . . Parts Repaired . | . . . . Time . | . . . . Parts Recycled . | . . . . Recycled Matter . | . . . . Retrieved Matter . | . . . . Retrieved Components . | . . . . Parts Scanalyzed . | . . . . Part Schematics Acquired . | . . . . Parts Damaged . | . . . . Bothacking | -11 -10 -10 -7 ------------ Run | Yrd Mat Sub Rec Used RIF Installer . | . . . . Robots Hacked . | . . . . Non-combat . | . . . . Combat . | . . . . Robot Hacks Applied . | . . . . Relay Couplers Released . | . . . . Fabnet Peak Effective % . | . . . . Robots Rewired . | . . . . Allies Hacked . | . . . . Hacks Repelled . | . . . . Allies | -11 -10 -10 -7 -------- Run | Yrd Mat Sub Rec Total Allies . | . . . . Largest Group . | . . . . Highest-Rated Group . | . . . . Highest-Rated Ally . | . . . . Total Orders . | . . . . Ally Attacks . | . . . . Total Damage . | . . . . Kills . | . . . . Allies Corrupted . | . . . . Allies Melted . | . . . . Intel | -11 -10 -10 -7 ------- Run | Yrd Mat Sub Rec Robot Analysis Total 4 | . 4 . . Derelict Logs Recovered 2 | . . 2 . Drone Launches . | . . . . Drone Recoveries . | . . . . Exploration | -11 -10 -10 -7 ------------- Run | Yrd Mat Sub Rec Turns Passed 2039 | 71 739 1229 . Spaces Moved 3311 | 52 1039 2220 . Core 2 | 2 . . . Treads . | . . . . Legs . | . . . . Wheels 163 | 50 113 . . Hover . | . . . . Flight 3146 | . 926 2220 . Fastest Speed 34 | 50 34 34 . Average Speed 36 | 88 40 34 . Slowest Speed 114 | 100 90 114 . Overloaded Moves . | . . . . Propulsion Burnouts . | . . . . Robots Hopped 6 | . 6 . . Cave-ins Triggered . | . . . . Exploration Rate (%) 49 | 4 98 93 3 Regions Visited 3 Branch Regions 2 Pre-discovered Areas 4 | . 2 2 . Known Exits Taken . | . . . . Unknown Exits Taken 3 | 1 1 1 . Scrap Searched 15 | . . 15 . Spaces Dug 7 | . . 7 . Terrain Destroyed 7 | . . 7 . Melee 7 | . . 7 . Projectile . | . . . . AOE . | . . . . Terrain Rammed . | . . . . Walls Destroyed . | . . . . Machines Disabled . | . . . . Actions | -11 -10 -10 -7 --------- Run | Yrd Mat Sub Rec Total 3775 | 64 1220 2491 . Wait 165 | . 67 98 . Move 3296 | 51 1026 2219 . Hop 6 | . 6 . . Pick Up 3 | . 1 2 . Fast Attach 20 | 7 6 7 . Attach 1 | . 1 . . Detach 1 | . 1 . . Swap 5 | 1 3 1 . Drop 10 | . 3 7 . Fire 66 | 5 61 . . Melee 126 | . 17 109 . Ram . | . . . . Kick . | . . . . Crush . | . . . . Escape Stasis . | . . . . Rewire . | . . . . Trap . | . . . . Miscellaneous 76 | . 28 48 . Route ------- -11/Scrapyard -10/Materials (discovered 5 exits: [*Mat x3] / [*Min] / *Sub) -10/Subcaves (discovered 3 exits: [*Mat x2] / [*Rec]) -7/Recycling History --------- Turn | Location | Event 1 | -11/Scrapyard | Upgraded with Power slot (x1) 1 | -11/Scrapyard | Upgraded with Propulsion slot (x1) 1 | -11/Scrapyard | Upgraded with Utility slot (x1) 1 | -11/Scrapyard | Upgraded with Weapon slot (x1) 28 | -11/Scrapyard | Discovered new exit (range 16) 72 | -11/Scrapyard | Entered Materials 206 | -10/Materials | Upgraded with Propulsion slot (x1) 206 | -10/Materials | Upgraded with Utility slot (x1) 410 | -10/Materials | Discovered new exit (range 16) 434 | -10/Materials | Discovered new exit (range 14) 466 | -10/Materials | Reached level 2 494 | -10/Materials | Discovered new exit (range 15) 502 | -10/Materials | Build established: Scavenger-Mutant 572 | -10/Materials | Discovered new exit (range 3) 596 | -10/Materials | Discovered new exit (range 16) 697 | -10/Materials | Reached level 3 811 | -10/Materials | Entered Subcaves 813 | -10/Subcaves | Reached level 4 813 | -10/Subcaves | Learned Materials terminal intel 845 | -10/Subcaves | A swath of the cavern ceiling suddenly collapsed 915 | -10/Subcaves | Build established: Scavenger-Gladiator 961 | -10/Subcaves | Shifting Twisted Machinery released Barrage Gun 964 | -10/Subcaves | Shifting Twisted Machinery released Sub. Machine Gun 978 | -10/Subcaves | Learned location of Zion (-7) 978 | -10/Subcaves | Met a Zionite searching for "candidates" 1019 | -10/Subcaves | A swath of the cavern ceiling suddenly collapsed 1135 | -10/Subcaves | Discovered new exit (range 5) 1375 | -10/Subcaves | Visited Clippyterm 1376 | -10/Subcaves | Learned location of Extension (-4) 1394 | -10/Subcaves | Shifting Twisted Machinery released Sub. Beam Cannon 1461 | -10/Subcaves | Learned location of 1 exit from Materials 1503 | -10/Subcaves | Shifting Twisted Machinery released Piercing Trap 1702 | -10/Subcaves | Discovered new exit (range 16) 1706 | -10/Subcaves | A Subdweller sparked back to life 1706 | -10/Subcaves | A Subdweller sparked back to life 1729 | -10/Subcaves | Found Prototype Protection 1729 | -10/Subcaves | Identified Gun Armor 1731 | -10/Subcaves | Attached Gun Armor, gained temporary slots: Weapon x2 1821 | -10/Subcaves | Discovered new exit (range 12) 1899 | -10/Subcaves | Disturbed a concealed Subdweller 2040 | -10/Subcaves | Entered Recycling 2040 | -7/Recycling | Self-destructed Last Messages --------------- 01941_ Destroyed Disposable Heat Sink. 01941_ V7-OKN(R) system corrupted by crushing effect. 01941_ V7-OKN(R) knocked back. 01947_ Sub. Optics melted. 01947_ V7-OKN(R) destroyed. 01951_ Used Protomatter to restore core integrity (+31) 01952_ Used Protomatter to restore part integrity (+7, depleted) 01991_ Searching scrap... 01991_ Found Sub. Optics. 01991_ Found 63 Matter. 02008_ Searching scrap... 02008_ Found Sub. Machine Gun. 02008_ Found Piercing Trap. 02008_ Found 39 Matter. LOCATION=UNKNOWN GOAL=ESCAPE [Achievement: Collector] Map ----- +----------------------------------------------------+ | ???????????????????????????????????? | | ???????????????????????????????????? | | ???????????????????????????????????? | | ???????????????????????????????????? | | ???????????????????????????????????? | | ???????????????????????????????????? | | ???????????????????????????????????? | | ???????????????????????????????????? | | ???????????????????????????????????? | | ???????????????????????????????????? | | ?????????? ??????????????????????? | | ?????????? ??????????????????????? | | ?????????? ??????????????????????? | | ?????????# #?????????????????????? | | ?????????# #?????????????????????? | | ?????????# #?????????????????????? | | ?????????# ##????????????????????? | | ?????????# !?????????????????????? | | ?????????# !?????????????????????? | | ?????????# !?????????????????????? | | ?????????# #?????????????????????? | | ?????????+ Y?????????????????????? | | ?????????# #?????????????????????? | | ?????????# #?????????????????????? | | ?????????# #?????????????????????? | | ?????????# @ #?????????????????????? | | ?????????# #?????????????????????? | | ?????????#####?????????????????????? | | ???????????????????????????????????? | | ???????????????????????????????????? | | ???????????????????????????????????? | | ???????????????????????????????????? | | ???????????????????????????????????? | | ???????????????????????????????????? | | ???????????????????????????????????? | | ???????????????????????????????????? | | ???????????????????????????????????? | | ???????????????????????????????????? | | | | | | | | | | | | | | | | | | | | | | | | | +----------------------------------------------------+ Best States ------------- Heat Dissipation 73 Energy Generation 19 Energy Capacity 400 Matter Stores 300 Matter Capacity 300 Sight Range 16 Terrain Scan Range 16 Terrain Scan Density 210 Additional Mass Support 6 Armor Coverage 800 Resistance: KI 20 Resistance: TH 20 Resistance: EX 20 Resistance: EM 20 Resistance: I 20 Resistance: S 20 Resistance: P 20 Evasion (%) 63 Offensive Hacking 10 Item Schematics ----------------- None Robot Schematics ------------------ None Fabricated ------------ Nothing Alien Tech Used ----------------- None Achievements -------------- Collector Challenges ------------ None RPGLIKE | -11 -10 -10 -7 --------- Run | Yrd Mat Sub Rec Levels Raised 3 | . 2 1 . XP Earned 9854 | 4000 4004 1850 . XP Spent 6450 | 2000 3950 500 . Upgrades 22 | 4 17 1 . Power Slot 1 | 1 . . . Propulsion Slot 2 | 1 1 . . Utility Slot 2 | 1 1 . . Weapon Slot 1 | 1 . . . Heat Dissipation 8 | . 8 . . Mass Support 1 | . 1 . . Inventory Capacity 2 | . 1 1 . Terrain Scan Density 2 | . 2 . . Ranged Accuracy 1 | . 1 . . Melee Accuracy 2 | . 2 . . Protomatter Created 661 | . 306 355 . Integrity Restored 1318 | . 463 855 . Core 876 | . 276 600 . Parts 442 | . 187 255 . Protomatter Decayed 183 | . 102 81 . Game ------ Seed ComponentMiningProtomatter Manual? 0 Play Time 00:25:23 Cumulative 257.9 hours Start 2025.03.18 @ 07:56:35 End 2025.03.18 @ 08:23:03 Sessions 1 Manual Loads 0 Difficulty Adventurer Special Mode Winter2019/RPGLIKE Game No. 109 Rogue 0 Adventurer 109 Explorer 0 Win Type - Total 10 Types 2/1/3/2/1/0/0/0/1 Lore% 80 Gallery% 75 Achievement% 78 Wizard Run 0 Options --------- Layout 2 ASCII 0 Keyboard 0 Movement Numpad Keybinds 0 Fullscreen 2 Font 24/Smallcaps Map View 50x44 Zoom Use 0% Tactical HUD 1 Map Filters NONE Filters NONE Steam 1 RUN: 01fd391f-7376-40d1-aa69-bf4d9e60bc54